bitfinex/quotes_ETHUSD_20241119
["timestamp","ask_amount","ask_price","bid_price","bid_amount"]
[1732025966211,0.07190089,3096.5,3096.3,3.22955]
[1732025967140,0.07190089,3096.5,3096.4,3.22955]
[1732025967723,0.07190089,3096.5,3096.2,3.22966]
[1732025967948,0.07190089,3096.5,3095.3,6.15909074]
[1732025967949,0.07190089,3096.5,3095.7,0.55]
[1732025968117,1.1498,3096.9,3096.6,3.22925]
[1732025968324,3.22876,3097.2,3096.6,3.22925]
[1732025968325,1.1498,3097.2,3096.8,3.22913]
[1732025968923,1.1498,3097.2,3096.6,3.22929]
[1732025969123,3.2289,3097.1,3096.4,3.22948]
[1732025969324,1.1498,3097.0,3096.4,3.22948]
[1732025969551,3.22903,3096.9,3096.4,3.22948]
[1732025969854,1.1498,3097.0,3096.7,3.22923]
[1732025970026,1.1498,3097.0,3096.7,0.322923]
[1732025970222,1.1498,3097.0,3096.7,3.22916]
[1732025971052,1.1509,3097.3,3096.9,3.22898]
[1732025971356,1.1509,3097.3,3096.2,2.91844074]
[1732025971357,1.1509,3097.3,3097.2,3.22872]
[1732025971853,2.93844074,3098.2,3097.6,3.22824]
[1732025971854,1.1509,3097.9,3097.6,3.22824]
[1732025972225,1.1509,3097.9,3097.8,3.22809]
[1732025972422,1.80213607,3098.3,3097.6,3.22824]
[1732025972682,1.80213607,3098.3,3098.1,3.22769]
[1732025972862,1.80213607,3098.3,3098.0,3.2278]
[1732025973029,6.32635435,3098.2,3097.2,1.3359]
[1732025973356,6.32635435,3098.2,3097.3,3.22855]
[1732025973357,1.1509,3097.8,3097.3,3.22855]
[1732025973555,3.22839,3097.6,3096.9,3.22894]
[1732025973741,3.22837,3097.6,3097.0,3.22891]
[1732025973958,3.22825,3097.7,3096.9,3.22894]
[1732025973959,3.22825,3097.7,3097.1,3.2288]
[1732025974162,3.22825,3097.7,3096.9,3.22894]
[1732025974341,3.22869,3097.3,3096.7,3.22917]
[1732025974844,1.1509,3097.4,3096.7,3.22917]
[1732025975196,6.45754,3097.2,3096.5,6.45882]
[1732025975343,6.45754,3097.2,3096.5,3.22937]
[1732025975531,3.22874,3097.2,3096.5,3.22937]
[1732025975731,3.22874,3097.2,3096.4,1.3987]
[1732025975975,3.229,3097.0,3096.4,3.22955]
[1732025976270,1.1509,3097.1,3096.1,3.22986]
[1732025976475,3.22902,3097.0,3096.3,3.22957]
[1732025976792,3.22904,3096.9,3096.3,3.22957]
[1732025977131,3.22902,3097.0,3096.1,3.22979]
[1732025977389,3.22924,3096.8,3096.2,3.22976]
[1732025977789,0.07189999,3096.7,3096.2,3.22976]
[1732025978099,0.07189999,3096.7,3096.3,3.22964]
[1732025978257,0.07189999,3096.7,3096.1,3.22981]
[1732025978464,1.1509,3097.1,3096.1,3.22981]
[1732025978465,3.2292,3096.8,3096.1,3.22981]
[1732025978668,0.07189999,3096.6,3096.1,3.22981]
[1732025978889,0.07185633,3096.7,3096.1,3.22981]
[1732025979099,6.45843,3096.8,3096.1,3.22981]
[1732025979287,0.07185633,3096.6,3096.2,3.22976]
[1732025979497,3.2292,3096.8,3096.2,3.22976]
[1732025979498,0.07184726,3096.7,3096.2,3.22976]
[1732025979803,1.1509,3096.5,3095.4,0.91690907]
[1732025980013,1.1509,3096.5,3095.2,3.2308]
[1732025980160,1.1509,3095.9,3095.2,3.23072]
[1732025980363,1.1509,3095.9,3095.1,1.4251]
[1732025980609,0.07178265,3095.8,3094.8,3.23122]
[1732025980769,0.65237187,3096.5,3094.4,0.18422318]
[1732025980770,3.2305,3095.5,3094.9,3.554222]
[1732025980974,0.07178174,3095.4,3094.9,3.2311]
[1732025981176,0.07178174,3095.4,3094.7,3.23133]
[1732025981382,3.30239174,3095.4,3094.7,3.554463]
[1732025982119,0.07178174,3095.4,3094.9,3.23103]
[1732025982317,1.1509,3095.3,3094.8,3.23122]
[1732025982614,0.07160882,3095.2,3094.9,3.23109]
[1732025983109,1.1509,3095.3,3094.9,3.23109]
[1732025983412,0.07160791,3095.2,3094.9,3.23109]
[1732025983623,1.1509,3095.7,3095.0,3.23101]
[1732025983771,1.1509,3095.7,3095.2,3.2308]
[1732025984115,1.1509,3095.7,3095.0,3.23101]
[1732025984116,0.07161157,3095.6,3095.0,1.4331]
[1732025984409,1.1509,3096.0,3095.5,3.23049]
[1732025984610,0.07161703,3095.9,3095.6,3.23037]
[1732025984767,3.23056,3095.5,3094.5,3.2315]
[1732025984969,3.23056,3095.5,3093.5,3.55015573]
[1732025984970,3.23082,3095.2,3094.0,1.34]
[1732025985228,0.07161703,3095.1,3094.5,3.2315]
[1732025985398,0.07161703,3095.1,3094.6,3.23142]
[1732025985577,1.1509,3095.3,3094.6,3.23142]
[1732025985777,0.07161339,3095.2,3094.6,3.23142]
[1732025986008,0.07161339,3095.2,3094.9,3.23102]
[1732025986164,1.1509,3095.3,3095.0,0.323102]
[1732025986371,0.07161248,3095.2,3094.8,3.23118]
[1732025986688,3.23089,3095.2,3094.3,3.23174]
[1732025986886,3.23091,3095.1,3094.3,3.23174]
[1732025987083,3.30252248,3095.1,3094.3,3.23174]
[1732025988468,3.30252248,3095.1,3094.1,4.34949791]
[1732025988469,0.07161248,3095.1,3094.1,1.11755791]
[1732025988687,0.07161248,3095.1,3094.1,0.55]
[1732025989017,1.1509,3095.6,3094.8,3.23114]
[1732025989176,1.1509,3095.6,3094.7,1.372]
[1732025989177,1.1509,3095.6,3094.9,0.460314]
[1732025989381,1.1509,3095.6,3095.5,3.23049]
[1732025989721,1.1509,3095.6,3094.7,1.372]
[1732025989722,3.22987,3096.1,3095.4,3.23058]
[1732025990073,0.07150958,3096.0,3095.1,3.23089]
[1732025990269,4.38098,3095.9,3095.1,3.23089]
[1732025990516,3.2302,3095.8,3095.1,3.23089]
[1732025990717,0.07150958,3095.8,3095.2,3.23079]
[1732025990920,0.07150958,3095.8,3094.7,4.372]
[1732025991121,0.07150958,3095.8,3094.9,0.460322]
[1732025991422,0.07150958,3095.8,3095.3,3.23062]
[1732025991573,0.07150958,3095.8,3094.9,0.460322]
[1732025991775,0.07150958,3095.8,3095.2,3.23077]
[1732025992005,0.07150958,3095.8,3094.9,3.2311]
[1732025992175,1.1509,3095.7,3094.9,3.2311]
[1732025992387,3.30198242,3095.6,3095.0,3.23098]
[1732025992809,0.07158242,3095.6,3095.0,3.23098]
[1732025993317,0.07158242,3095.6,3094.8,3.23121]
[1732025993318,0.07158242,3095.6,3095.1,3.23082]
[1732025993476,0.07158242,3095.6,3095.0,3.231]
[1732025993679,0.07158242,3095.6,3095.1,3.23081]
[1732025994188,0.07158242,3095.6,3094.9,3.23106]
[1732025994632,0.07158242,3095.6,3095.0,3.23092]
[1732025995221,0.07158242,3095.6,3094.8,3.2312]
[1732025995222,3.23049,3095.5,3094.8,3.2312]
[1732025995435,3.23029,3095.7,3094.8,3.2312]
[1732025995436,4.45305239,3095.4,3094.8,3.2312]
[1732025995790,4.45305239,3095.4,3094.6,3.23143]
[1732025996192,1.22245239,3095.4,3094.9,3.23111]
[1732025996390,1.22245239,3095.4,3095.0,3.23097]
[1732025997011,0.07155239,3095.4,3095.3,3.2307]
[1732025997339,1.1509,3095.7,3094.8,3.23117]
[1732025997340,1.1509,3095.7,3095.4,3.23058]
[1732025997871,1.1509,3095.7,3095.2,3.23078]
[1732025998548,4.38128,3095.7,3094.9,3.23112]
[1732025998699,3.02,3096.1,3094.8,3.23122]
[1732025998700,0.02,3096.1,3094.8,3.23122]
[1732025998902,3.22997,3096.0,3095.0,3.23095]
[1732025999103,3.23007,3095.9,3095.1,3.23089]
[1732025999358,3.24988,3096.1,3095.2,3.2308]
[1732025999654,3.23019,3095.8,3095.2,3.2308]
[1732025999804,3.23012,3095.9,3095.2,3.2308]
[1732026000143,6.83381905,3095.8,3095.0,3.23099]
[1732026000447,3.23094,3095.1,3094.0,1.399]
[1732026000656,3.24072,3095.3,3094.0,1.399]
[1732026000657,3.23101,3095.0,3094.4,3.23162]
[1732026000942,3.23101,3095.0,3094.4,3.23157]
[1732026001148,3.23123,3094.8,3094.2,3.23181]
[1732026001449,3.23114,3094.9,3094.0,3.23203]
[1732026001605,3.23146,3094.6,3093.9,3.23213]
[1732026001805,3.23175,3094.3,3093.6,3.23239]
[1732026002037,3.23175,3094.3,3093.7,3.23236]
[1732026002250,3.23175,3094.3,3093.6,3.23239]
[1732026002251,3.23185,3094.2,3093.6,3.23239]
[1732026002432,3.23206,3094.0,3093.4,3.23268]
[1732026002750,0.01,3094.3,3093.6,3.23247]
[1732026002895,6.23177,3094.3,3093.7,3.23236]
[1732026003100,6.23177,3094.3,3093.0,1.3905]
[1732026003101,0.6621391,3094.5,3093.0,1.3905]
[1732026003361,6.83496905,3094.7,3093.9,3.23207]
[1732026003362,6.23147,3094.6,3093.9,3.23207]
[1732026003507,3.23153,3094.5,3093.7,3.23235]
[1732026003841,3.23183,3094.3,3093.5,3.23251]
[1732026004061,3.23183,3094.3,3093.0,4.6235]
[1732026004062,0.01,3094.4,3093.1,3.23299]
[1732026004264,3.23244,3093.7,3093.0,3.23304]
[1732026004430,3.23272,3093.4,3092.7,3.23334]
[1732026004630,3.23272,3093.4,3092.2,4.57723]
[1732026004631,3.2329,3093.2,3092.5,3.2336]
[1732026004956,3.2329,3093.2,3092.6,3.23349]
[1732026005121,3.2329,3093.2,3092.5,3.2336]
[1732026005324,3.23278,3093.4,3092.7,3.23333]
[1732026005626,3.23279,3093.3,3092.5,3.23358]
[1732026005834,0.07122164,3093.2,3092.5,3.23358]
[1732026006135,3.30413164,3093.2,3092.7,3.23335]
[1732026006334,0.07122164,3093.2,3092.7,3.23335]
[1732026006586,3.23282,3093.3,3092.5,3.23354]
[1732026006748,6.46571,3093.3,3092.6,3.2335]
[1732026006951,6.46571,3093.3,3091.8,0.1417608]
[1732026006952,3.60355905,3093.1,3091.8,0.1417608]
[1732026007145,3.23373,3092.4,3091.8,0.1417608]
[1732026007329,3.60355905,3092.7,3091.8,0.1417608]
[1732026007330,3.23384,3092.3,3091.8,0.1417608]
[1732026007536,3.23407,3092.1,3091.8,0.1417608]
[1732026007734,6.83746905,3092.3,3091.8,0.1417608]
[1732026007735,0.07114504,3092.2,3091.8,0.1417608]
[1732026007933,6.83746905,3092.3,3091.8,0.1417608]
[1732026008171,0.07108849,3092.1,3091.8,0.1417608]
[1732026008375,3.60355905,3092.3,3091.8,0.1417608]
[1732026008376,0.07099453,3092.0,3091.8,0.1417608]
[1732026008674,3.60355905,3092.3,3091.8,0.1417608]
[1732026008860,0.07099453,3091.9,3091.8,3.71374288]
[1732026009175,3.61355905,3093.5,3091.8,3.71374288]
[1732026009176,0.64657359,3093.4,3092.9,3.2332]
[1732026009332,0.64657359,3093.4,3092.6,3.23349]
[1732026009333,3.23286,3093.3,3092.6,3.23349]
[1732026009539,0.01,3092.4,3091.8,0.1417608]
[1732026009845,3.60355905,3092.2,3091.8,0.1417608]
[1732026010047,0.06856834,3092.3,3091.8,0.1417608]
[1732026010247,0.64288739,3092.1,3091.8,0.1417608]
[1732026010859,0.06631814,3092.0,3091.9,3.23425]
[1732026011853,0.06631814,3092.0,3091.8,0.1417608]
[1732026012078,0.06631814,3092.0,3091.9,3.23425]
[1732026012273,0.64288739,3092.1,3091.8,0.1417608]
[1732026012553,0.06631814,3092.0,3091.8,0.1417608]
[1732026012750,3.30046814,3092.0,3091.8,0.1417608]
[1732026012950,0.06631814,3092.0,3091.8,0.1417608]
[1732026015180,0.06631814,3092.0,3091.8,3.3760908]
[1732026015490,0.06631814,3092.0,3091.8,0.1417608]
[1732026015863,0.63096889,3092.2,3091.9,3.23425]
[1732026016178,0.63096889,3092.2,3091.8,0.1417608]
[1732026016379,0.63096889,3092.2,3092.0,3.23415]
[1732026016541,0.63096889,3092.2,3092.1,3.23404]
[1732026016738,3.23357,3092.6,3091.8,6.6103708]
[1732026017066,3.23365,3092.5,3091.9,3.23419]
[1732026017669,3.23365,3092.5,3091.8,3.3760408]
[1732026017853,3.23365,3092.5,3091.8,0.1417608]
[1732026017854,3.23401,3092.2,3091.8,0.1417608]
[1732026018057,3.23417,3092.0,3091.8,0.1417608]
[1732026018488,3.23425,3091.9,3091.8,0.1417608]
[1732026018857,6.84754905,3092.2,3091.8,0.1417608]
[1732026019080,3.23418,3092.0,3091.8,0.1417608]
[1732026019404,3.23425,3091.9,3091.8,0.1417608]
[1732026019561,6.23425,3091.9,3091.8,0.1417608]
[1732026020191,0.66111264,3092.0,3091.8,0.1417608]
[1732026020531,0.66111264,3092.0,3091.8,3.3761208]
[1732026021309,0.66111264,3092.0,3091.8,0.1417608]
[1732026022266,0.66111264,3092.0,3091.9,3.23425]
[1732026022470,8.91,3092.4,3091.9,6.46843]
[1732026022829,3.23358,3092.6,3091.9,3.23418]
[1732026022988,3.23348,3092.7,3091.9,3.23418]
[1732026023187,3.23358,3092.6,3091.9,3.23418]
[1732026023390,3.23358,3092.6,3092.1,3.234]
[1732026023595,3.2334,3092.8,3092.1,3.234]
[1732026023793,3.0,3092.9,3092.5,3.23358]
[1732026023959,6.23332,3092.8,3092.2,3.23386]
[1732026024391,3.88191969,3092.6,3092.0,3.2341]
[1732026024760,0.64837969,3092.6,3092.0,3.23407]
[1732026025011,0.64837969,3092.6,3092.2,3.23392]
[1732026025566,0.64837969,3092.6,3092.0,3.23407]
[1732026025809,3.88192969,3092.6,3092.1,3.23403]
[1732026026190,0.64837969,3092.6,3092.2,3.23391]
[1732026026566,0.64837969,3092.6,3092.4,3.23367]
[1732026026766,0.01,3093.1,3091.8,0.1417608]
[1732026026967,3.23296,3093.2,3092.6,3.23344]
[1732026027205,0.63608629,3093.0,3092.6,3.23344]
[1732026027410,3.86920629,3093.0,3092.4,3.23368]
[1732026027619,3.23321,3092.9,3092.4,3.23368]
[1732026027933,3.86920629,3093.0,3092.4,3.23368]
[1732026027934,0.63608629,3093.0,3092.4,3.23368]
[1732026028068,3.23364,3092.5,3092.0,3.23409]
[1732026028269,0.01,3092.7,3091.8,0.1417608]
[1732026028475,3.23395,3092.2,3091.8,0.1417608]
[1732026028913,3.2341,3092.1,3091.8,0.1417608]
[1732026029115,3.61355905,3092.6,3091.8,0.1417608]
[1732026029116,3.23415,3092.0,3091.8,0.1417608]
[1732026029409,0.01,3092.5,3091.8,0.1417608]
[1732026029410,3.23405,3092.1,3091.8,0.1417608]
[1732026029617,3.23411,3092.1,3091.8,0.1417608]
[1732026029821,3.89369256,3092.2,3091.8,0.1417608]
[1732026030104,3.23408,3092.1,3091.8,0.1417608]
[1732026030305,0.0965,3092.0,3091.8,0.1417608]
[1732026030509,3.33068,3092.0,3091.8,0.1417608]
[1732026030873,3.23425,3091.9,3091.8,0.1417608]
[1732026031513,6.33075,3091.9,3091.8,0.1417608]
[1732026031683,6.82312219,3091.9,3091.8,0.1417608]
[1732026031883,6.33075,3091.9,3091.8,0.1417608]
[1732026032290,7.625056,3091.9,3091.8,0.1417608]
[1732026032814,6.33075,3091.9,3091.8,0.1417608]
[1732026033627,3.0965,3091.9,3091.8,0.1417608]
[1732026033829,3.0965,3091.9,3091.8,3.3761208]
[1732026033830,0.0965,3091.9,3091.8,3.3761208]
[1732026034043,1.95393856,3092.2,3091.8,3.3761208]
[1732026034044,2.05043856,3092.2,3091.8,0.1417608]
[1732026034245,3.23313,3093.0,3091.8,0.1417608]
[1732026034246,0.0965,3092.5,3092.1,3.23404]
[1732026034409,0.0965,3092.5,3091.8,0.1417608]
[1732026034410,1.390428,3092.5,3092.2,3.23391]
[1732026034601,0.63228448,3092.6,3092.3,3.23375]
[1732026034947,0.0965,3092.8,3091.9,0.55]
[1732026035238,0.0965,3093.2,3092.6,3.23349]
[1732026035439,3.32942,3093.2,3092.6,3.23349]
[1732026035892,3.23301,3093.1,3092.6,3.23349]
[1732026036096,3.23321,3092.9,3092.4,3.2337]
[1732026036339,3.23321,3092.9,3092.2,3.23392]
[1732026036548,0.0965,3092.6,3092.0,3.23408]
[1732026036837,3.32974,3092.9,3092.3,3.23379]
[1732026036991,3.23333,3092.8,3092.2,3.23393]
[1732026037202,0.0965,3092.9,3092.3,3.23378]
[1732026037424,0.0965,3092.9,3092.5,3.23356]
[1732026037425,0.08978954,3092.8,3092.5,3.23356]
[1732026037595,0.08978954,3092.8,3092.3,3.23377]
[1732026038033,0.08978954,3092.8,3092.2,3.23392]
[1732026038034,3.23343,3092.7,3092.2,3.23392]
[1732026038349,0.08978954,3092.8,3092.1,3.23399]
[1732026038350,3.23332,3092.8,3092.3,3.23377]
[1732026038528,3.32976,3092.9,3092.3,3.23377]
[1732026038529,0.08978954,3092.6,3092.3,3.23377]
[1732026038884,0.08977298,3092.5,3092.3,3.23377]
[1732026039173,3.32347298,3092.5,3091.9,3.23422]
[1732026039382,3.23373,3092.4,3091.8,0.1417608]
[1732026039565,0.0965,3092.3,3091.8,0.1417608]
[1732026039737,3.2341,3092.1,3091.8,0.1417608]
[1732026039933,0.0965,3092.3,3091.8,0.1417608]
[1732026040132,3.23425,3091.9,3091.8,0.1417608]
[1732026040367,0.0965,3092.3,3091.8,0.1417608]
[1732026040368,3.23414,3092.1,3091.8,0.1417608]
[1732026040547,0.08977298,3091.9,3091.8,0.1417608]
[1732026040738,0.0965,3092.3,3091.8,0.1417608]
[1732026041053,3.23411,3092.1,3091.8,0.1417608]
[1732026041228,0.08974631,3092.0,3091.8,0.1417608]
[1732026041437,3.33039,3092.3,3091.8,3.3761008]
[1732026041438,3.98561272,3092.3,3091.8,3.3761008]
[1732026041687,3.98561272,3092.3,3091.8,0.1417608]
[1732026041688,3.23405,3092.1,3091.8,0.1417608]
[1732026042386,0.08974631,3092.0,3091.8,0.1417608]
[1732026043090,0.0965,3092.3,3091.8,0.1417608]
[1732026043260,0.08973341,3091.9,3091.8,0.1417608]
[1732026043458,3.33039,3092.3,3091.8,0.1417608]
[1732026043658,0.08973341,3092.2,3092.0,3.23412]
[1732026043971,0.64122176,3092.4,3092.0,3.23412]
[1732026044188,0.08973341,3092.1,3092.0,3.23412]
[1732026044359,0.08973341,3092.1,3091.8,0.1417608]
[1732026044360,0.64122176,3092.4,3092.3,3.23383]
[1732026044766,0.64122176,3092.4,3091.8,0.1417608]
[1732026044767,3.87500176,3092.4,3091.8,0.1417608]
[1732026044999,7.10882176,3092.4,3091.8,0.1417608]
[1732026045200,3.23385,3092.3,3091.8,0.1417608]
[1732026045504,3.23409,3092.1,3091.8,0.1417608]
[1732026046001,3.2339,3092.3,3091.8,0.1417608]
[1732026046503,3.23394,3092.2,3091.8,0.1417608]
[1732026047603,3.87496176,3092.4,3091.8,0.1417608]
[1732026047923,3.87496176,3092.4,3091.9,3.23425]
[1732026048059,3.87496176,3092.4,3091.8,0.1417608]
[1732026048261,3.23385,3092.3,3091.8,0.1417608]
[1732026048488,7.10877176,3092.4,3091.8,3.3760408]
[1732026048697,3.87496176,3092.4,3091.8,0.1417608]
[1732026048913,0.64122176,3092.4,3092.0,3.23406]
[1732026049300,8.91,3092.6,3092.3,3.23383]
[1732026049703,1.293738,3093.3,3092.3,3.23383]
[1732026049704,0.0965,3093.1,3092.3,3.557183]
[1732026050006,0.63896874,3093.0,3092.9,3.23321]
[1732026050210,0.63896874,3093.0,3092.8,3.23323]
[1732026050367,0.63896874,3093.0,3092.9,3.23321]
[1732026050566,0.63896874,3093.0,3092.9,3.879854]
[1732026050877,0.63896874,3093.0,3092.9,5.378454]
[1732026051903,0.08386552,3093.0,3092.9,4.73181]
[1732026052418,3.0,3093.7,3093.2,3.23283]
[1732026052563,3.32861,3094.0,3093.7,3.23231]
[1732026052564,0.0965,3094.0,3093.7,3.23231]
[1732026052770,0.63618752,3093.8,3093.7,3.23231]
[1732026053272,0.0965,3094.9,3094.3,3.23173]
[1732026053468,0.0965,3094.9,3094.5,3.23147]
[1732026053698,0.64485457,3094.6,3094.5,3.23147]
[1732026054806,6.4609,3095.6,3094.9,3.23105]
[1732026055027,0.6438197,3095.4,3095.1,3.23091]
[1732026055165,0.6438197,3095.4,3095.3,3.2307]
[1732026056379,3.60355905,3096.2,3095.0,1.4146]
[1732026056583,3.23084,3095.2,3094.6,1.4323]
[1732026056834,0.0965,3095.5,3094.6,1.4323]
[1732026056835,3.23074,3095.3,3094.7,3.23132]
[1732026057025,0.0965,3095.5,3094.9,3.23111]
[1732026057346,0.0965,3095.5,3094.7,3.23132]
[1732026057347,3.23069,3095.4,3094.7,3.23132]
[1732026057514,3.23088,3095.2,3094.6,1.4323]
[1732026057844,3.23118,3094.9,3094.3,4.66404]
[1732026058042,3.23118,3094.9,3094.3,1.4323]
[1732026058401,3.23129,3094.8,3094.3,1.4323]
[1732026058834,3.23118,3094.9,3094.3,4.664]
[1732026059015,3.23118,3094.9,3094.3,1.4323]
[1732026059659,3.23151,3094.6,3093.9,1.3721]
[1732026059959,3.23187,3094.2,3094.0,0.505]
[1732026060256,3.0965,3094.9,3094.0,0.505]
[1732026060257,3.2316,3094.5,3094.0,0.505]
[1732026060412,3.23195,3094.1,3094.0,0.505]
[1732026060827,0.0968,3094.2,3094.0,0.505]
[1732026061028,3.32865,3094.2,3094.0,0.505]
[1732026062147,3.23165,3094.4,3094.0,0.505]
[1732026062361,3.0,3094.5,3094.0,3.73697]
[1732026062654,3.60355905,3095.0,3094.0,3.73697]
[1732026062655,3.23083,3095.2,3094.6,3.23143]
[1732026063208,0.06570919,3095.1,3094.6,3.23143]
[1732026063438,0.06570919,3095.1,3094.7,3.23131]
[1732026063607,3.97050901,3095.3,3094.7,3.23131]
[1732026063818,3.97050901,3095.3,3094.8,3.2312]
[1732026063819,0.06570919,3095.2,3094.8,3.2312]
[1732026064015,3.23057,3095.5,3094.8,6.46235]
[1732026064214,0.06570919,3095.4,3094.8,6.46235]
[1732026064429,3.29632919,3095.4,3094.6,3.23139]
[1732026064631,3.29632919,3095.4,3094.6,3.23136]
[1732026064969,3.29632919,3095.4,3094.0,3.73704]
[1732026064970,3.66926824,3095.4,3094.2,7.91981]
[1732026065269,3.60355905,3094.6,3094.0,0.505]
[1732026065421,3.06576616,3094.5,3094.0,0.505]
[1732026067064,0.0968,3094.4,3094.0,0.505]
[1732026067235,0.06572206,3094.3,3094.0,0.505]
[1732026068028,9.5658765,3094.8,3094.1,1.3987]
[1732026068029,0.6558765,3094.8,3094.1,1.3987]
[1732026068234,0.06571009,3094.7,3094.3,3.23166]
[1732026068467,0.0968,3095.2,3094.5,3.23146]
[1732026068662,0.06570734,3095.1,3094.6,0.323146]
[1732026068876,0.06570734,3095.1,3094.5,3.23146]
[1732026069373,0.06570734,3095.1,3094.7,3.23124]
[1732026069592,0.06570734,3095.1,3094.5,3.23146]
[1732026069752,0.65994802,3095.0,3094.3,3.23172]
[1732026069932,0.0968,3094.9,3094.0,0.505]
[1732026070481,3.29708222,3094.8,3094.0,0.505]
[1732026070776,0.06582222,3094.8,3094.0,0.505]
[1732026070943,3.0,3094.7,3094.0,0.505]
[1732026071150,0.06582222,3094.8,3094.1,3.23195]
[1732026071345,0.0968,3094.9,3094.0,0.505]
[1732026071678,3.0,3094.7,3094.0,0.505]
[1732026071892,6.32792,3094.9,3094.0,0.505]
[1732026072074,0.06575879,3094.8,3094.0,3.73706]
[1732026072463,0.06575879,3094.8,3094.1,3.23188]
[1732026072778,0.06575879,3094.8,3094.3,3.23166]
[1732026073107,0.65994802,3095.0,3094.5,1.4816]
[1732026073249,0.0635572,3094.7,3094.5,1.4816]
[1732026073440,0.0968,3095.3,3094.6,0.505]
[1732026073670,0.0635572,3095.2,3094.6,0.505]
[1732026073943,0.63247443,3095.1,3094.6,4.581345]
[1732026074252,0.06355812,3095.0,3094.8,3.23121]
[1732026074454,0.06355812,3095.0,3094.8,3.23113]
[1732026074797,3.0,3095.8,3094.8,3.23113]
[1732026074798,0.0968,3096.0,3095.2,1.3875]
[1732026075079,3.29369812,3095.9,3095.2,1.3875]
[1732026075385,0.63720372,3095.8,3095.2,1.3875]
[1732026075725,0.06366746,3095.7,3095.2,1.3875]
[1732026076606,0.06366746,3095.7,3095.2,4.61829]
[1732026076811,0.06366746,3095.7,3094.9,0.55]
[1732026076812,0.06366746,3095.7,3094.9,1.4641]
[1732026077395,0.06366746,3095.7,3095.5,3.23046]
[1732026077786,0.74318328,3096.3,3095.7,3.23025]
[1732026077984,3.32647,3096.3,3095.6,1.3599]
[1732026078300,0.06161226,3096.2,3095.7,3.23019]
[1732026078602,0.06161226,3096.2,3095.9,3.23001]
[1732026078807,0.06161226,3096.2,3096.0,3.22988]
[1732026079006,0.0968,3096.9,3096.2,3.22976]
[1732026079191,3.22887,3097.1,3096.3,3.22959]
[1732026079402,0.06162419,3096.8,3096.4,3.22949]
[1732026079604,3.22883,3097.1,3096.4,3.22949]
[1732026079805,0.66235054,3096.8,3096.5,3.22942]
[1732026080132,3.32524,3097.5,3096.6,3.22933]
[1732026080337,0.06170956,3096.7,3096.6,3.22933]
[1732026080554,6.45652,3097.7,3096.8,3.22904]
[1732026080834,6.45652,3097.7,3096.9,1.4285]
[1732026080835,3.22841,3097.5,3096.9,1.4285]
[1732026081210,3.22823,3097.7,3096.9,1.4285]
[1732026081390,0.66144552,3097.3,3097.0,3.22886]
[1732026081729,0.06170956,3097.2,3096.9,1.4285]
[1732026082038,0.06170956,3097.2,3097.0,3.22892]
[1732026082240,0.06170956,3097.2,3096.9,1.4285]
[1732026082389,0.63069493,3097.4,3096.9,4.65745]
[1732026082591,0.06174719,3097.1,3096.9,1.4285]
[1732026082915,0.06174719,3097.0,3096.9,1.4285]
[1732026083293,3.22889,3097.1,3096.5,1.4681]
[1732026083516,3.2293,3096.7,3096.1,1.4681]
[1732026083717,3.22962,3096.4,3096.0,0.505]
[1732026083922,0.0968,3096.8,3096.0,0.505]
[1732026084106,3.29148719,3096.3,3096.0,0.505]
[1732026084312,3.22977,3096.2,3096.0,0.505]
[1732026084541,0.06175086,3096.2,3096.0,0.505]
[1732026084920,3.22974,3096.3,3096.0,0.505]
[1732026085551,3.22986,3096.1,3096.0,0.505]
[1732026086033,3.29156222,3096.1,3096.0,0.505]
[1732026087302,0.06170222,3096.1,3096.0,0.505]
[1732026087502,3.0,3096.4,3096.0,0.505]
[1732026087730,3.29133459,3096.3,3096.0,0.505]
[1732026088208,3.22986,3096.1,3096.0,0.505]
[1732026088728,3.38832459,3096.1,3096.0,0.505]
[1732026089558,6.38832459,3096.1,3096.0,0.505]
[1732026089847,6.38832459,3096.1,3094.4,3.2316]
[1732026089848,3.0,3096.0,3094.9,1.4971]
[1732026090061,3.23037,3095.7,3094.9,1.4971]
[1732026090203,3.23037,3095.7,3095.1,3.23084]
[1732026090400,3.23041,3095.6,3095.1,3.23084]
[1732026090630,0.06165999,3095.6,3094.9,4.72817]
[1732026090830,0.06165999,3095.6,3095.1,3.23089]
[1732026091030,0.0968,3096.1,3094.9,1.4971]
[1732026091302,3.22999,3096.0,3095.4,4.68614]
[1732026091506,0.06162692,3095.9,3095.4,1.4556]
[1732026091703,3.22971,3096.3,3095.6,3.23036]
[1732026092040,3.23011,3095.9,3095.4,1.4556]
[1732026092243,3.23011,3095.9,3095.4,4.68618]
[1732026092420,0.06166916,3095.8,3095.4,4.68618]
[1732026092836,0.06166916,3095.8,3095.4,1.4556]
[1732026093054,0.06166916,3095.8,3095.0,0.55]
[1732026093055,3.2304,3095.6,3095.1,1.4415]
[1732026093260,3.23051,3095.5,3095.1,1.4415]
[1732026093413,0.0616857,3095.4,3095.1,1.4415]
[1732026093934,3.23031,3095.7,3095.1,1.4415]
[1732026094137,0.06167284,3095.3,3095.1,1.4415]
[1732026094319,3.23042,3095.6,3095.1,1.4415]
[1732026094550,0.06167284,3095.2,3095.1,1.4415]
[1732026094757,3.23037,3095.7,3095.1,1.4415]
[1732026094954,0.06167284,3095.2,3095.1,1.4415]
[1732026095437,3.23044,3095.6,3095.1,1.4415]
[1732026095640,0.06167284,3095.5,3095.1,1.4415]
[1732026095877,6.2301,3095.9,3095.1,1.4415]
[1732026096177,3.23051,3095.5,3095.1,1.4415]
[1732026096377,3.23064,3095.4,3095.1,1.4415]
[1732026096576,3.23064,3095.4,3094.8,3.23116]
[1732026096577,3.23094,3095.1,3094.5,1.3784]
[1732026096881,0.06165631,3095.0,3094.6,0.55]
[1732026097085,3.29269631,3095.0,3094.5,1.3784]
[1732026097590,6.52380631,3095.0,3094.5,1.3784]